bitfinex/quotes_ETHUSD_20250711
["timestamp","ask_amount","ask_price","bid_price","bid_amount"]
[1752220771705,0.55,2971.1,2969.3,0.10225405]
[1752220771910,0.55,2970.9,2969.2,0.25019234]
[1752220772108,0.55,2970.9,2969.0,1.14669836]
[1752220772308,0.87864805,2971.0,2969.0,0.70449836]
[1752220772512,0.1618,2970.9,2969.1,0.4422]
[1752220772747,0.1618,2970.9,2969.3,1.5187]
[1752220772921,0.1618,2970.9,2969.4,0.73777]
[1752220773456,0.1618,2970.9,2969.5,6.3252]
[1752220773613,0.1618,2970.9,2969.6,10.0]
[1752220773814,0.1618,2970.9,2969.6,10.4422]
[1752220774150,0.168,2969.9,2969.8,10.0]
[1752220774324,0.1618,2969.9,2969.8,5.881]
[1752220774522,0.1618,2969.9,2969.8,5.917]
[1752220775109,0.1618,2969.9,2969.4,0.4422]
[1752220775314,0.1618,2969.9,2969.6,10.0]
[1752220775531,0.1618,2969.9,2969.6,9.9]
[1752220775949,0.1618,2969.9,2969.6,1.5812]
[1752220776148,1.11,2970.9,2969.0,0.70269795]
[1752220776149,0.1618,2970.2,2969.7,6.3552]
[1752220776354,0.1618,2970.2,2969.8,0.4422]
[1752220776551,1.2718,2970.2,2969.9,5.908]
[1752220776751,1.2718,2970.2,2969.9,6.3502]
[1752220777158,1.11,2970.2,2970.0,0.4422]
[1752220777769,1.11,2970.2,2970.0,10.4422]
[1752220778281,1.11,2970.2,2970.0,10.0]
[1752220778422,1.11,2970.2,2970.1,0.4422]
[1752220779058,2.22,2970.2,2970.1,0.4422]
[1752220779263,2.22,2970.2,2969.7,1.562]
[1752220779561,2.22,2970.2,2966.8,1.53503721]
[1752220779562,0.55,2969.5,2967.8,11.899]
[1752220779770,0.55,2968.8,2966.4,0.4422]
[1752220780071,8.2364805,2969.3,2968.0,0.002]
[1752220780250,10.0,2969.6,2968.0,0.002]
[1752220780251,0.55,2968.7,2968.0,0.002]
[1752220780459,0.1618,2968.2,2968.0,3.081]
[1752220780822,0.1618,2968.2,2966.8,8.5092]
[1752220780823,0.1618,2968.2,2968.1,12.024]
[1752220781023,0.1524,2968.4,2968.1,12.024]
[1752220781224,10.55,2969.4,2966.5,3.365]
[1752220781426,10.55,2969.4,2966.6,20.5302]
[1752220781427,1.11,2968.8,2966.6,20.5302]
[1752220781635,0.1524,2968.7,2966.7,0.4422]
[1752220781879,1.11,2968.8,2966.5,0.34771371]
[1752220781880,8.2364805,2968.3,2966.8,20.089]
[1752220782028,0.1524,2968.2,2966.8,20.089]
[1752220782222,0.1524,2968.2,2965.8,0.11549713]
[1752220782223,0.55,2968.6,2966.0,8.067]
[1752220782423,0.55,2967.9,2966.1,12.22]
[1752220782760,0.55,2967.7,2966.0,8.067]
[1752220782935,0.55,2967.4,2966.2,12.227]
[1752220783126,0.1524,2967.3,2966.2,12.227]
[1752220783524,0.1524,2967.6,2966.2,12.227]
[1752220783723,0.1524,2967.6,2966.3,11.2227]
[1752220783936,0.1524,2967.6,2966.3,10.0]
[1752220784162,8.2364805,2968.0,2966.3,10.0]
[1752220784365,8.2364805,2967.2,2964.9,0.25593277]
[1752220784584,10.0,2967.9,2965.0,4.0682]
[1752220784785,0.1524,2967.8,2965.1,0.4422]
[1752220785095,1.01524,2967.7,2965.2,10.07402]
[1752220785391,1.01524,2967.7,2965.3,0.4677]
[1752220785392,0.1524,2967.6,2965.3,0.4677]
[1752220785589,0.1524,2967.8,2965.3,0.4677]
[1752220786150,0.1524,2967.8,2965.4,0.03372226]
[1752220786398,0.1524,2967.8,2965.5,0.4677]
[1752220786605,1.11,2967.2,2965.5,0.4677]
[1752220786908,1.11,2967.2,2965.7,10.0]
[1752220787110,1.11,2967.2,2965.8,8.31582971]
[1752220787277,1.11,2967.2,2966.0,1.5305]
[1752220787456,1.11,2967.2,2966.1,0.4677]
[1752220787655,1.11,2967.2,2966.2,6.304]
[1752220787893,1.11,2967.2,2966.3,0.4677]
[1752220788097,1.11,2967.2,2966.3,1.14487]
[1752220788275,1.11,2967.2,2966.3,0.67717]
[1752220788455,1.11,2967.2,2966.4,0.4677]
[1752220788650,1.11,2967.2,2966.5,0.03370975]
[1752220788852,1.11,2967.2,2966.7,10.0]
[1752220789206,2.22,2967.2,2966.8,0.4677]
[1752220789350,2.22,2967.2,2966.7,11.85417]
[1752220789553,2.22,2967.2,2966.9,0.4677]
[1752220789890,2.22,2967.2,2967.0,0.4677]
[1752220790094,2.22,2967.2,2967.1,0.4677]
[1752220790656,2.22,2967.2,2967.1,0.67043]
[1752220790944,2.22,2967.2,2966.6,14.371]
[1752220790945,2.22,2967.2,2966.6,8.074]
[1752220791125,2.22,2967.2,2967.1,6.28]
[1752220791580,3.33,2967.2,2967.1,6.28]
[1752220792253,3.33,2967.2,2967.1,16.7477]
[1752220794171,4.44,2967.2,2967.1,17.2977]
[1752220794365,4.44,2967.2,2967.1,19.02747]
[1752220794772,4.44,2967.2,2967.1,6.7367]
[1752220796113,4.44,2967.2,2967.1,10.9064]
[1752220796264,4.44,2967.2,2967.1,12.2634]
[1752220796706,5.55,2967.2,2967.1,12.2634]
[1752220796916,5.55,2967.2,2967.1,8.8994]
[1752220797061,4.509375,2967.2,2967.1,10.78934]
[1752220797280,1.11,2968.2,2967.4,0.55]
[1752220797582,1.11,2968.2,2967.5,0.4677]
[1752220797919,1.11,2968.2,2965.6,0.4677]
[1752220797920,1.6427,2967.7,2965.6,0.4677]
[1752220798286,1.6427,2967.7,2965.7,6.352]
[1752220798486,10.0,2967.9,2965.7,6.352]
[1752220798487,0.1524,2967.6,2965.7,6.352]
[1752220798793,1.6427,2967.6,2965.8,1.14967]
[1752220798996,1.7951,2967.6,2965.9,6.346]
[1752220799394,1.7951,2967.6,2966.0,10.0]
[1752220799597,1.7951,2967.6,2965.9,6.346]
[1752220799809,1.7951,2967.6,2966.0,10.4677]
[1752220800060,1.5365,2967.3,2965.4,3.8337]
[1752220800330,1.5365,2967.1,2965.6,10.0]
[1752220800632,1.5365,2967.1,2965.8,1.6109]
[1752220800941,1.5365,2967.1,2965.9,10.4677]
[1752220801231,1.5365,2967.1,2966.0,0.4677]
[1752220801430,1.5365,2967.1,2966.1,1.04677]
[1752220801998,2.6465,2967.1,2966.1,1.04677]
[1752220802213,2.6465,2967.1,2966.2,0.4677]
[1752220802517,2.6465,2967.1,2966.4,10.0]
[1752220802728,2.6465,2967.1,2966.6,10.0]
[1752220804114,1.11,2967.1,2966.7,0.4677]
[1752220804320,1.11,2967.1,2966.8,6.7747]
[1752220804502,2.22,2967.1,2966.8,6.307]
[1752220804849,2.22,2967.1,2966.9,10.0]
[1752220805034,2.22,2967.1,2967.0,0.4677]
[1752220805198,1.5816,2967.0,2964.8,0.11217262]
[1752220805396,0.55,2966.7,2964.9,0.4677]
[1752220805637,4.14666,2966.9,2964.7,8.076]
[1752220805638,3.7443,2965.9,2965.0,6.466]
[1752220805836,3.7443,2965.9,2964.7,8.5437]
[1752220805837,1.5816,2965.8,2964.7,8.5437]
[1752220806008,1.5816,2965.8,2964.8,6.553]
[1752220806210,1.5816,2965.8,2964.7,8.5437]
[1752220806412,1.5816,2965.8,2965.0,10.0]
[1752220806614,1.5816,2965.8,2965.1,0.4677]
[1752220806813,1.11,2965.8,2965.2,6.608]
[1752220807141,1.11,2965.8,2965.1,0.4677]
[1752220807348,1.11,2965.8,2965.2,6.606]
[1752220807525,1.11,2965.8,2965.3,0.70737]
[1752220807723,1.11,2965.8,2965.4,0.4677]
[1752220807923,1.5961,2966.9,2965.4,0.4677]
[1752220807924,1.5961,2966.9,2965.6,10.55]
[1752220808248,2.22,2967.1,2965.8,10.0]
[1752220808448,2.22,2967.1,2966.0,10.0]
[1752220808650,2.22,2967.1,2966.2,10.0]
[1752220808805,2.22,2967.1,2966.4,10.0]
[1752220809437,3.33,2967.1,2966.1,8.5457]
[1752220809638,8.2364805,2966.6,2963.9,0.4677]
[1752220809848,10.71621968,2966.5,2964.2,0.4677]
[1752220810042,2.27179835,2967.0,2964.3,5.937]
[1752220810043,0.55,2966.0,2964.3,5.937]
[1752220810265,1.02830483,2965.9,2964.3,5.937]
[1752220810556,0.1524,2965.8,2964.3,5.937]
[1752220810717,1.5009,2965.7,2964.3,5.937]
[1752220812257,1.5009,2965.7,2962.5,1.62793064]
[1752220812258,3.532,2965.5,2963.5,3.369]
[1752220812435,3.532,2964.5,2962.6,6.609]
[1752220812759,1.37444771,2965.4,2961.7,0.25751364]
[1752220812760,0.4532,2964.4,2962.7,7.0767]
[1752220813055,0.03374405,2964.3,2962.8,13.832]
[1752220813261,0.03374405,2964.2,2962.9,11.9167]
[1752220813423,1.5955,2964.6,2961.9,0.11244552]
[1752220813622,1.5955,2964.6,2959.6,1.5163]
[1752220813623,1.6955,2964.5,2961.8,0.4677]
[1752220813823,1.72554405,2964.4,2961.9,18.55076211]
[1752220814134,0.55,2964.3,2962.0,2.36954621]
[1752220814356,0.03374405,2964.2,2962.1,0.4677]
[1752220814658,1.5918,2964.1,2962.1,0.4677]
[1752220814832,0.03374405,2964.0,2962.1,0.4677]
[1752220815020,2.2418,2963.9,2962.1,0.4677]
[1752220815225,1.5918,2963.6,2962.2,7.06]
[1752220815863,0.03374405,2963.5,2962.2,7.06]
[1752220816034,0.03374405,2963.5,2962.1,0.4465]
[1752220816035,0.03374405,2963.4,2962.1,0.4465]
[1752220816235,1.5918,2962.1,2961.1,8.082]
[1752220816561,1.5918,2963.2,2961.2,10.47777009]
[1752220816754,1.5918,2963.2,2961.3,12.49968853]
[1752220816952,0.03374405,2963.1,2961.3,12.01941958]
[1752220817152,0.03374405,2963.1,2961.4,17.5185]
[1752220817338,1.5918,2963.0,2961.5,7.066]
[1752220817532,0.03374405,2962.9,2961.4,0.4465]
[1752220817865,0.03374405,2962.9,2961.6,1.5219]
[1752220818174,1.11,2963.6,2961.8,5.03988]
[1752220818351,0.03374405,2963.5,2961.9,10.8925]
[1752220818550,1.11,2963.6,2962.0,10.48026097]
[1752220818766,1.11,2963.6,2962.1,8.63665983]
[1752220818951,0.03374405,2963.5,2962.2,13.369]
[1752220819271,1.11,2963.6,2962.4,10.0]
[1752220819560,0.635,2963.0,2962.7,1.5219]
[1752220819748,1.11,2963.6,2962.9,10.0]
[1752220819951,1.11,2963.6,2963.0,0.4465]
[1752220819952,0.1734375,2963.6,2963.0,0.4465]
[1752220820189,0.1734375,2963.6,2963.2,10.0]
[1752220820482,0.1734375,2963.6,2963.3,1.81704616]
[1752220820683,0.07530756,2963.6,2963.5,11.5219]
[1752220820877,2.7018,2965.8,2963.7,10.0]
[1752220821159,0.03374405,2965.5,2963.9,10.0]
[1752220821325,0.03374405,2965.5,2964.0,0.4465]
[1752220821527,0.03374405,2965.5,2964.2,10.0]
[1752220821737,0.03374405,2965.5,2964.4,10.0]
[1752220822843,0.03374405,2965.5,2964.5,0.4465]
[1752220823046,0.03374405,2965.5,2964.6,10.0]
[1752220823252,0.03374405,2965.5,2964.8,10.0]
[1752220823773,1.11,2965.6,2965.0,10.0]
[1752220823971,1.11,2965.6,2965.2,10.0]
[1752220824271,1.11,2965.6,2965.4,10.0]
[1752220824435,1.11,2965.6,2965.5,18.5315]
[1752220824875,1.11,2965.6,2965.5,21.8965]
[1752220825053,1.11,2965.6,2965.5,28.9315]
[1752220825239,1.11,2965.6,2965.5,33.40105]
[1752220825432,1.59834405,2967.0,2965.5,33.40105]
[1752220825433,0.03374405,2967.0,2965.6,10.0]
[1752220825760,2.6114,2967.7,2965.8,10.0]
[1752220825761,0.03374405,2967.6,2965.8,10.0]
[1752220825934,0.03374405,2967.6,2966.0,10.0]
[1752220826285,0.168,2966.7,2966.2,0.168]
[1752220826441,0.168,2966.7,2966.4,10.0]
[1752220826636,0.03374405,2967.6,2966.5,0.4465]
[1752220826962,0.03374405,2967.6,2966.6,10.0]
[1752220827271,3.498,2967.1,2966.8,10.0]
[1752220827472,3.498,2967.1,2966.6,10.168]
[1752220827672,3.33,2967.1,2966.8,10.0]
[1752220827877,0.168,2966.9,2966.8,10.0]
[1752220828075,0.168,2966.9,2966.8,18.081]
[1752220828375,0.168,2966.9,2966.8,18.5275]
[1752220828671,0.168,2966.9,2966.8,21.08215]
[1752220829047,0.168,2966.9,2966.8,28.07115]
[1752220830283,0.168,2966.9,2966.8,28.05815]
[1752220830782,0.168,2966.9,2966.8,25.4945]
[1752220830947,0.168,2966.9,2966.8,25.4895]
[1752220831279,1.5094,2966.9,2966.8,8.081]
[1752220831576,1.5094,2966.9,2966.8,15.042]
[1752220831783,4.44,2967.1,2966.9,10.0]
[1752220832081,4.44,2967.1,2966.9,0.4465]
[1752220832313,4.44,2967.1,2967.0,0.4465]
[1752220833505,4.44,2967.1,2967.0,12.99535]
[1752220834365,4.44,2967.1,2967.0,10.4465]
[1752220834578,5.55,2967.1,2967.0,17.3855]
[1752220836396,5.55,2967.1,2967.0,10.4465]
[1752220836598,5.55,2967.1,2967.0,17.3595]
[1752220837060,5.55,2967.1,2967.0,17.8975]
[1752220837061,6.66,2967.1,2967.0,17.8975]
[1752220837259,6.66,2967.1,2967.0,20.49535]
[1752220837874,6.25626617,2967.1,2967.0,13.59435]
[1752220838192,6.25626617,2967.1,2967.0,20.48635]
[1752220839108,2.59048519,2967.1,2967.0,23.85035]
[1752220839399,2.59048519,2967.1,2967.0,25.87235]
[1752220839576,3.70048519,2967.1,2967.0,18.5235]
[1752220839911,3.70048519,2967.1,2967.0,25.3995]
[1752220840060,3.70048519,2967.1,2967.0,29.3135]
[1752220840516,2.56984685,2967.1,2967.0,29.3135]
[1752220840813,1.11,2967.7,2967.4,12.022]
[1752220840963,1.11,2968.2,2967.9,10.55]
[1752220841164,1.11,2968.2,2968.0,0.55]
[1752220841363,1.11,2968.8,2968.2,10.55]
[1752220841608,1.11,2968.8,2968.6,0.168]
[1752220841764,1.11,2968.8,2968.7,25.3775]
[1752220842192,1.11,2968.8,2968.7,25.9275]
[1752220842597,1.11,2968.8,2968.7,18.5235]
[1752220842784,1.11,2968.8,2968.7,25.3635]
[1752220843268,1.11,2968.8,2968.7,31.20056958]
[1752220843605,1.11,2968.8,2968.7,34.33742654]
[1752220843906,1.11,2968.8,2968.7,33.89092654]
[1752220844089,1.11,2968.8,2968.7,30.97542654]
[1752220844268,1.11,2968.8,2968.7,34.33742654]
[1752220844469,2.22,2968.8,2968.7,34.90542419]
[1752220844765,2.22,2968.8,2968.7,34.33742654]
[1752220845668,0.168,2970.0,2968.8,10.55]
[1752220845870,0.168,2970.0,2969.1,0.55]
[1752220846164,0.168,2970.0,2969.6,0.168]
[1752220846391,2.22,2970.2,2969.3,10.55]
[1752220846392,2.22,2970.2,2969.8,10.0]
[1752220846590,2.22,2970.2,2970.0,10.0]
[1752220846591,2.388,2970.2,2970.0,10.0]
[1752220846790,2.388,2970.2,2970.1,32.00481336]
[1752220847071,3.33,2970.2,2970.1,31.97114446]
[1752220847905,3.33,2970.2,2970.1,32.497998]
[1752220848094,3.33,2970.2,2970.1,32.41574446]
[1752220848609,3.33,2970.2,2970.1,34.92761951]
[1752220848816,3.33,2970.2,2970.1,33.38052531]
[1752220848967,2.92664262,2970.2,2970.1,34.98072531]
[1752220849691,4.03664262,2970.2,2970.1,34.98072531]
[1752220849904,4.03664262,2970.2,2970.1,34.91472531]
[1752220850607,4.03664262,2970.2,2970.1,25.54492531]
[1752220851109,4.03664262,2970.2,2970.1,18.79792531]
[1752220851405,4.03664262,2970.2,2970.1,25.54492531]
[1752220851790,4.03664262,2970.2,2970.1,29.09401784]
[1752220852112,1.11,2970.9,2970.2,14.1664]
[1752220852268,1.11,2970.9,2970.4,10.55]
[1752220852475,1.11,2970.9,2970.3,13.28881109]
[1752220852476,1.11,2970.9,2970.7,0.55]
[1752220852672,1.11,2970.9,2970.8,11.30374446]
[1752220852902,1.11,2970.9,2970.8,18.02474446]
[1752220853295,0.70674468,2970.9,2970.8,18.02474446]
[1752220853706,0.70674468,2970.9,2970.8,11.30374446]
[1752220853909,0.70674468,2970.9,2970.8,18.01574446]
[1752220854481,0.70674468,2970.9,2970.8,20.15331891]
[1752220854696,1.81674468,2970.9,2970.8,20.15331891]
[1752220855374,1.81674468,2970.9,2970.8,13.44131891]
[1752220855580,1.81674468,2970.9,2970.8,20.13031891]
[1752220856440,1.81674468,2970.9,2970.8,21.65161891]
[1752220857126,2.92674468,2970.9,2970.8,21.65161891]
[1752220857479,1.15818905,2970.9,2970.8,25.26361891]
[1752220857787,0.03374405,2972.5,2971.1,10.55]
[1752220857992,0.03374405,2972.5,2971.0,2.022]
[1752220857993,0.03474405,2972.7,2971.3,10.55]
[1752220858311,0.03474405,2972.7,2971.6,0.55]
[1752220858524,0.03474405,2972.7,2971.8,10.55]
[1752220858673,0.03474405,2972.7,2972.0,10.0]
[1752220858880,0.03474405,2972.7,2972.2,10.0]
[1752220858881,0.001,2972.7,2972.2,10.0]
[1752220859186,0.001,2972.7,2972.4,10.0]
[1752220859398,0.001,2972.7,2972.5,23.61514446]
[1752220859399,0.03474405,2972.7,2972.5,23.61514446]
[1752220859711,2.6517,2972.6,2972.5,23.61514446]
[1752220860318,3.18670441,2972.6,2972.5,10.30914446]
[1752220860503,3.18670441,2972.6,2972.5,16.94814446]
[1752220860699,2.6517,2972.6,2972.5,23.58414446]
[1752220861005,2.22,2972.6,2972.5,23.58414446]
[1752220861320,2.6517,2972.6,2972.5,23.57614446]
[1752220861997,3.7617,2972.6,2972.5,23.57618856]
[1752220862655,3.33,2972.6,2972.5,23.57618856]
[1752220863242,2.92689449,2972.6,2972.5,23.57618856]
[1752220863424,2.52377471,2972.6,2972.5,23.57618856]
[1752220864239,3.49111218,2972.6,2972.5,13.51518856]
[1752220864419,3.63377471,2972.6,2972.5,23.51518856]
[1752220864824,3.63377471,2972.6,2972.5,23.51520677]
[1752220866928,4.74377471,2972.6,2972.5,23.95990974]
[1752220867115,4.74377471,2972.6,2972.5,24.50990974]
[1752220867614,4.74377471,2972.6,2972.5,24.67790974]
[1752220867815,4.74377471,2972.6,2972.5,30.51216789]
[1752220868144,3.93776456,2972.6,2972.5,33.50146789]
[1752220868329,3.93776456,2972.6,2972.5,33.33346789]
[1752220869011,3.39203337,2972.6,2972.5,33.33346789]
[1752220869216,3.39203337,2972.6,2972.5,27.48820974]
[1752220869440,4.50203337,2972.6,2972.5,27.48820974]
[1752220869642,4.50203337,2972.6,2972.5,8.37330974]
[1752220869842,4.93373337,2972.6,2972.5,14.91530974]
[1752220870016,4.93373337,2972.6,2972.5,24.91530974]
[1752220870417,4.93373337,2972.6,2972.5,24.606]
[1752220870619,4.93373337,2972.6,2972.5,24.91591213]
[1752220870821,4.93373337,2972.6,2972.5,18.37391213]
[1752220871008,4.93473337,2972.6,2972.5,24.90491213]
[1752220871518,4.93473337,2972.6,2972.5,18.37391213]
[1752220871717,6.80845671,2972.6,2972.5,8.37391213]
[1752220871933,6.80845671,2972.6,2972.5,14.89391213]
[1752220872131,6.80845671,2972.6,2972.5,24.89391213]
[1752220872132,6.04473337,2972.6,2972.5,24.89391213]
[1752220872619,6.04473337,2972.6,2972.5,18.37391213]
[1752220872945,6.04473337,2972.6,2972.5,24.88591213]
[1752220873349,6.8033423,2972.6,2972.5,18.37391213]
[1752220873515,6.8033423,2972.6,2972.5,24.88591213]
[1752220873714,7.59815094,2972.6,2972.5,18.37391213]
[1752220874033,7.59815094,2972.6,2972.5,24.87791213]
[1752220874233,8.70815094,2972.6,2972.5,14.87091213]
[1752220874748,1.5397,2972.5,2972.1,8.062]
[1752220874949,1.5397,2972.5,2971.2,1.2572]
[1752220874950,1.5397,2972.3,2971.4,8.062]
[1752220875251,14.97108987,2972.6,2970.9,0.002]
[1752220875252,1.5397,2972.1,2970.9,0.002]
[1752220875451,0.03374405,2972.0,2971.0,6.492]
[1752220875654,1.5293,2971.9,2970.9,0.002]
[1752220875958,1.5293,2971.7,2971.1,10.0]
[1752220876112,8.25953893,2972.5,2970.9,0.002]
[1752220876113,1.5293,2971.5,2970.9,0.002]
[1752220876323,1.5293,2971.3,2970.9,0.002]
[1752220876517,0.03374405,2971.2,2971.0,6.483]
[1752220876734,0.4743,2971.2,2971.0,6.483]
[1752220876943,1.5293,2971.3,2971.0,6.483]
[1752220877122,0.03374405,2971.2,2971.1,10.0]
[1752220877328,0.50804405,2971.2,2971.1,10.0]
[1752220877552,0.50804405,2971.2,2971.1,6.475]
[1752220878257,1.5293,2971.3,2971.1,6.475]
[1752220878439,0.168,2971.3,2971.2,10.6475]
[1752220878617,0.6423,2971.3,2971.2,10.6475]
[1752220878820,0.6423,2971.3,2971.2,10.0]
[1752220879251,1.7523,2971.3,2971.2,10.0]
[1752220879618,1.278,2971.3,2971.2,10.0]
[1752220880631,1.278,2971.3,2971.2,6.451]
[1752220881151,1.278,2971.3,2971.2,6.445]
[1752220881518,2.388,2971.3,2971.2,6.445]
[1752220882334,2.388,2971.3,2971.2,6.434]
[1752220883116,2.8623,2971.3,2971.2,6.425]
[1752220883322,2.4502813,2971.3,2971.2,6.422]
[1752220883553,2.4502813,2971.3,2970.9,0.002]
[1752220883751,1.9759813,2971.3,2971.1,10.0]
[1752220883926,3.5602813,2971.3,2971.1,10.0]
[1752220884126,3.5602813,2971.3,2971.2,6.416]
[1752220884329,3.0859813,2971.3,2971.2,6.416]
[1752220884554,3.0859813,2971.3,2971.2,7.0576]
[1752220884721,3.2539813,2971.3,2971.2,7.0576]
[1752220884919,3.2539813,2971.3,2971.2,6.416]
[1752220885126,3.7282813,2971.3,2970.9,0.002]
[1752220885464,0.4743,2971.2,2971.1,10.0]
[1752220886086,0.168,2971.1,2970.9,0.002]
[1752220886262,1.69724405,2971.0,2970.9,0.002]
[1752220886422,2.17154405,2971.0,2970.9,16.396]
[1752220886624,2.17154405,2971.0,2970.9,10.002]
[1752220886826,2.49969845,2971.0,2970.9,6.394]
[1752220887055,2.49969845,2971.0,2970.9,0.002]
[1752220887254,2.49969845,2971.0,2970.9,6.391]
[1752220887460,2.49969845,2971.0,2970.9,0.002]
[1752220887661,1.6635,2970.9,2970.1,8.065]
[1752220887866,1.6635,2970.5,2970.1,8.065]
[1752220888027,0.50804405,2970.4,2970.2,6.384]
[1752220888223,0.4743,2970.3,2970.2,16.384]
[1752220888649,1.5843,2970.3,2970.2,6.384]
[1752220888965,1.11,2970.3,2970.2,16.384]
[1752220889130,0.73171418,2970.3,2970.2,17.8289]
[1752220889772,0.56371418,2970.3,2970.2,18.295]
[1752220889939,0.56371418,2970.3,2970.2,18.845]
[1752220890427,0.56371418,2970.3,2970.2,16.362]
[1752220891271,1.11663299,2970.3,2970.2,16.362]
[1752220891696,2.72963299,2970.3,2970.2,0.31203079]
[1752220891987,3.20393299,2970.3,2970.2,6.66803079]
[1752220892295,3.20393299,2970.3,2970.2,6.70003079]
[1752220892633,3.20393299,2970.3,2970.2,0.31203079]
[1752220892884,3.20393299,2970.3,2970.2,6.69703079]
[1752220893253,3.20393299,2970.3,2970.2,0.31203079]
[1752220893481,2.72963299,2970.3,2970.2,6.68703079]
[1752220893634,4.31393299,2970.3,2970.2,6.374]
[1752220894145,4.31393299,2970.3,2970.2,6.371]
[1752220894346,4.74532629,2970.3,2970.1,0.002]
[1752220894668,4.27102629,2970.3,2970.2,6.368]
[1752220894872,4.27102629,2970.3,2970.2,6.361]
[1752220895027,4.74532629,2970.3,2970.2,6.361]
[1752220895232,1.659,2970.2,2970.1,0.002]
[1752220895459,1.659,2970.1,2968.9,8.067]
[1752220895732,1.659,2969.9,2969.0,6.358]
[1752220896056,0.4743,2969.8,2969.0,6.358]
[1752220896254,0.4743,2969.8,2969.1,10.0]
[1752220896457,0.4743,2969.8,2968.9,8.067]
[1752220896458,0.03374405,2969.7,2969.2,6.355]
[1752220896659,0.03374405,2969.7,2969.3,6.349]
[1752220896660,0.4743,2969.6,2969.3,6.349]
[1752220896859,0.4743,2969.6,2968.9,8.067]
[1752220896860,0.50804405,2969.5,2968.9,8.067]
[1752220897065,0.50804405,2969.5,2969.0,10.0]
[1752220897268,1.5457,2969.4,2969.1,6.343]
[1752220897500,0.50804405,2969.3,2969.1,6.343]
[1752220897813,0.4743,2969.2,2969.1,6.343]
[1752220898019,0.4743,2969.2,2969.0,10.0]
[1752220898313,0.4743,2969.1,2968.9,8.067]
[1752220898521,0.4743,2969.1,2969.0,6.336]
[1752220898676,0.4743,2969.1,2968.9,8.067]
[1752220898863,0.4743,2969.1,2969.0,6.332]
[1752220899066,1.11,2969.2,2969.0,6.332]
[1752220899263,0.03374405,2969.1,2969.0,16.332]
[1752220899468,1.11,2969.2,2969.1,10.0]
[1752220899961,1.11,2969.2,2969.1,16.326]
[1752220900177,1.11,2969.2,2969.1,16.57301443]
[1752220900385,1.278,2969.2,2969.1,16.57301443]
[1752220900594,1.278,2969.2,2969.1,17.03911443]
[1752220900778,1.11,2969.2,2969.1,19.78530575]
[1752220900974,2.22,2969.2,2969.0,10.0]
[1752220901302,2.22,2969.2,2969.1,6.321]
[1752220902070,2.22,2969.2,2969.1,6.315]
[1752220902615,2.22,2969.2,2969.1,6.313]
[1752220903570,3.33,2969.2,2969.1,6.313]
[1752220904383,3.33,2969.2,2969.1,8.56469684]
[1752220905027,3.33,2969.2,2969.1,2.25169684]
[1752220905207,3.33,2969.2,2969.1,8.54269684]
[1752220905714,3.33,2969.2,2969.1,6.7332]
[1752220906015,3.33,2969.2,2969.1,6.289]
[1752220906211,4.44,2969.2,2969.1,6.289]
[1752220906413,4.44,2969.2,2969.1,6.285]
[1752220906943,4.44,2969.2,2969.0,10.0]
[1752220907228,4.44,2969.2,2969.1,6.28]
[1752220907373,4.03644943,2969.2,2969.1,6.28]
[1752220907577,4.03644943,2969.2,2969.0,11.8320682]
[1752220907776,4.03644943,2969.2,2969.1,6.75688023]
[1752220908382,4.03644943,2969.2,2969.1,6.7232]
[1752220908592,5.14644943,2969.2,2969.1,9.38542682]
[1752220908801,4.38144354,2969.2,2969.1,9.38542682]
[1752220908980,4.38144354,2969.2,2969.1,23.50092682]
[1752220909180,3.83506582,2969.2,2969.1,23.50092682]
[1752220909524,2.83027809,2969.2,2969.1,23.50092682]
[1752220909720,1.11,2970.1,2969.6,2.572]
[1752220909921,1.11,2970.1,2969.7,16.5122]
[1752220910283,1.11,2970.1,2969.8,0.4502]
[1752220910483,1.11,2970.1,2970.0,10.0]
[1752220911007,2.22,2970.1,2970.0,10.0]
[1752220911518,2.22,2970.1,2970.0,6.241]
[1752220911731,2.22,2970.1,2970.0,16.238]
[1752220911932,2.22,2970.1,2970.0,10.0]
[1752220912128,2.22,2970.1,2970.0,16.238]
[1752220912800,2.22,2970.1,2970.0,10.0]
[1752220913122,3.2980733,2970.1,2970.0,6.225]
[1752220913318,1.5858,2970.0,2968.9,8.067]
[1752220913617,0.50114405,2969.9,2969.0,6.236]
[1752220913783,0.50114405,2969.9,2969.0,10.0]
[1752220913983,0.03374405,2969.9,2969.1,6.6852]
[1752220914210,0.03374405,2970.0,2969.2,7.35172]
[1752220914411,3.33,2970.1,2969.5,0.55]
[1752220914689,3.33,2970.1,2969.7,10.0]
[1752220915018,3.33,2970.1,2969.9,1.6152]
[1752220915191,3.33,2970.1,2970.0,6.229]
[1752220915381,3.33,2970.1,2970.0,7.46362]
[1752220915988,4.441,2970.1,2970.0,7.45862]
[1752220917228,3.67618169,2970.1,2970.0,7.49229003]
[1752220917421,3.67618169,2970.1,2970.0,7.45862]
[1752220917786,3.67618169,2970.1,2969.6,0.4502]
[1752220918126,3.67618169,2970.1,2969.7,6.6622]